fUSD/lending_fUSD_20240328
["ID","MTS","AMOUNT","RATE_DAILY","PERIOD"]
[320838113,1711611044363,-924.81,0.000538,30]
[320838114,1711611044372,-924.81,0.000538,30]
[320838115,1711611044381,-600.0,0.000538,19]
[320838116,1711611044390,-172.49409203,0.00053829,30]
[320838117,1711611044399,-172.49409203,0.00053839,30]
[320838118,1711611044409,-172.49409203,0.00053839,30]
[320838119,1711611044418,-3903.79726,0.00053849,30]
[320838120,1711611044428,-172.49409203,0.0005388,30]
[320838121,1711611044437,-172.49409203,0.0005388,30]
[320838122,1711611044447,-172.49409203,0.0005388,30]
[320838123,1711611044457,-172.49409203,0.0005389,30]
[320838124,1711611044466,-172.49409203,0.0005389,30]
[320838125,1711611044475,-172.49409203,0.0005389,30]
[320838126,1711611044489,-172.49409203,0.0005389,30]
[320838127,1711611044499,-172.49409203,0.0005389,30]
[320838128,1711611044508,-172.49409203,0.0005389,30]
[320838129,1711611044517,-172.49409203,0.0005389,30]
[320838130,1711611044526,-172.49409203,0.0005389,30]
[320838131,1711611044536,-172.49409203,0.0005389,30]
[320838132,1711611044545,-172.49409203,0.0005389,30]
[320838133,1711611044555,-172.49409203,0.0005389,30]
[320838134,1711611044565,-150.0,0.000539,30]
[320838135,1711611044574,-150.0,0.000539,30]
[320838136,1711611044583,-150.0,0.000539,30]
[320838137,1711611044592,-150.0,0.000539,30]
[320838138,1711611044601,-150.94,0.000539,30]
[320838139,1711611044610,-150.0,0.000539,30]
[320838140,1711611044622,-150.0,0.000539,30]
[320838141,1711611044631,-150.0,0.000539,30]
[320838142,1711611044640,-150.0,0.000539,30]
[320838143,1711611044649,-150.0,0.000539,30]
[320838144,1711611044658,-150.0,0.000539,30]
[320838145,1711611044667,-150.0,0.000539,30]
[320838146,1711611044676,-150.0,0.000539,30]
[320838147,1711611044686,-150.0,0.000539,30]
[320838148,1711611044696,-150.0,0.000539,30]
[320838149,1711611044706,-150.99,0.000539,30]
[320838150,1711611044717,-150.0,0.000539,30]
[320838151,1711611044727,-2937.743114,0.000539,91]
[320838152,1711611044738,-8493.9840084,0.000539,20]
[320838153,1711611044748,-1000.0,0.000539,19]
[320838154,1711611044757,-172.49409203,0.00053906,30]
[320838155,1711611044766,-1000.0,0.00053916,120]
[320838156,1711611044775,-639.0,0.00053965,120]
[320838157,1711611044784,-172.49409203,0.0005398,30]
[320838158,1711611044793,-150.0,0.0005399,7]
[320838159,1711611044802,-172.49409203,0.0005399,30]
[320838160,1711611044811,-172.49409203,0.0005399,30]
[320838161,1711611044819,-172.49409203,0.0005399,30]
[320838162,1711611044829,-172.49409203,0.0005399,30]
[320838163,1711611044838,-172.49409203,0.0005399,30]
[320838164,1711611044847,-172.49409203,0.0005399,30]
[320838165,1711611044856,-150.0,0.00054,30]
[320838166,1711611044866,-150.0,0.00054,30]
[320838167,1711611044875,-150.0,0.00054,30]
[320838168,1711611044885,-150.0,0.00054,30]
[320838169,1711611044894,-550.00000001,0.00054,120]
[320838170,1711611044903,-1112.0,0.00054,4]
[320838171,1711611044912,-2023.7,0.00054,120]
[320838172,1711611044922,-5000.0,0.00054,120]
[320838173,1711611044931,-3243.63484551,0.00054,30]
[320838174,1711611044940,-150.0,0.00054012,7]
[320838175,1711611044950,-150.0,0.00054016,30]
[320838176,1711611044958,-1400.0,0.00054016,120]
[320838177,1711611044968,-273.0,0.0005402,73]
[320838178,1711611044977,-172.49409203,0.0005409,30]
[320838179,1711611044986,-172.49409203,0.0005409,30]
[320838180,1711611044995,-172.49409203,0.0005409,30]
[320838181,1711611045003,-150.0,0.00054091,7]
[320838182,1711611045012,-2000.0,0.000541,120]
[320838183,1711611045022,-2000.0,0.000541,120]
[320838184,1711611045031,-150.0,0.00054124,7]
[320838185,1711611045040,-172.49409203,0.00054126,30]
[320838186,1711611045050,-150.0,0.00054131,7]
[320838187,1711611045058,-172.49409203,0.00054136,30]
[320838188,1711611045067,-172.49409203,0.00054136,30]
[320838189,1711611045077,-172.49409203,0.00054136,30]
[320838190,1711611045085,-166.33000668,0.00054139,60]
[320838191,1711611045094,-172.49409203,0.0005414,30]
[320838192,1711611045104,-172.49409203,0.0005414,30]
[320838193,1711611045113,-173.43722697,0.00054146,14]
[320838194,1711611045122,-151.63330788,0.00054146,60]
[320838195,1711611045131,-2252.54118188,0.00054146,31]
[320838196,1711611045140,-150.0,0.00054146,7]
[320838197,1711611045149,-221.85907698,0.00054146,2]
[320838198,1711611045158,-200.15597255,0.00054146,26]
[320838199,1711611045167,-2500.0,0.00054146,3]
[320838200,1711611045175,-2018.02374887,0.0005415,120]
[320838201,1711611045185,-157.49088873,0.00054167,60]
[320838202,1711611045195,-150.0,0.00054171,7]
[320838203,1711611045204,-218.06660014,0.00054185,7]
[320838204,1711611045214,-172.49409203,0.0005419,30]
[320838205,1711611045223,-172.49409203,0.0005419,30]
[320838206,1711611045232,-150.0,0.000542,11]
[320838207,1711611045241,-2000.0,0.000542,120]
[320838208,1711611045250,-150.0,0.00054206,7]
[320838209,1711611045259,-172.49409203,0.00054224,30]
[320838210,1711611045268,-172.49409203,0.00054225,30]
[320838211,1711611045277,-172.49409203,0.00054225,30]
[320838212,1711611045291,-172.49409203,0.00054234,30]
[320838213,1711611045301,-172.49409203,0.00054234,30]
[320838214,1711611045310,-172.49409203,0.00054234,30]
[320838215,1711611045320,-169.55,0.00054235,2]
[320838216,1711611045329,-172.49409203,0.00054235,30]
[320838217,1711611045337,-172.49409203,0.00054235,30]
[320838218,1711611045347,-172.49409203,0.00054235,30]
[320838219,1711611045357,-172.49409203,0.00054235,30]
[320838220,1711611045368,-172.49409203,0.00054235,30]
[320838221,1711611045378,-172.49409203,0.00054235,30]
[320838222,1711611045387,-172.49409203,0.00054235,30]
[320838223,1711611045396,-172.49409203,0.00054235,30]
[320838224,1711611045405,-172.49409203,0.00054235,30]
[320838225,1711611045414,-172.49409203,0.00054235,30]
[320838226,1711611045423,-172.49409203,0.00054235,30]
[320838227,1711611045432,-172.49409203,0.00054235,30]
[320838228,1711611045442,-180.82050896,0.00054236,2]
[320838229,1711611045453,-171.30483149,0.00054243,2]
[320838230,1711611045462,-3211.85267899,0.00054244,4]
[320838231,1711611045472,-1023.25239434,0.00054244,60]
[320838232,1711611045482,-414.84675061,0.00054244,2]
[320838233,1711611045491,-205.58287185,0.00054245,120]
[320838234,1711611045500,-8871.55806452,0.00054245,120]
[320838235,1711611045510,-704.08499974,0.00054245,30]
[320838236,1711611045519,-698.25,0.00054245,14]
[320838237,1711611045527,-1000.0,0.00054245,120]
[320838238,1711611045537,-1000.0,0.00054245,120]
[320838239,1711611045545,-1000.0,0.00054245,120]
[320838240,1711611045556,-1000.0,0.00054245,120]
[320838241,1711611045565,-1000.0,0.00054245,120]
[320838242,1711611045574,-1000.0,0.00054245,60]
[320838243,1711611045583,-639.0,0.00054245,120]
[320838244,1711611045592,-639.0,0.00054245,120]
[320838245,1711611045601,-639.0,0.00054245,120]
[320838246,1711611045611,-639.0,0.00054245,120]
[320838247,1711611045621,-639.0,0.00054245,120]
[320838248,1711611045630,-3194.82,0.00054245,120]
[320838249,1711611045639,-3194.82,0.00054245,120]
[320838250,1711611045648,-3194.82,0.00054245,120]
[320838251,1711611045657,-3194.82,0.00054245,120]
[320838252,1711611045666,-3194.82,0.00054245,120]
[320838253,1711611045675,-500.0,0.00054246,30]
[320838256,1711611045685,-500.0,0.00054246,120]
[320838258,1711611045694,-500.0,0.00054246,120]
[320838259,1711611045703,-509.61181737,0.00054246,120]
[320838260,1711611045712,-238.77378827,0.00054246,120]
[320838261,1711611045721,-458.40314934,0.00054246,120]
[320838262,1711611045729,-325.68803425,0.00054246,120]
[320838263,1711611045738,-500.0,0.00054246,120]
[320838264,1711611045747,-583.06594582,0.00054246,120]
[320838265,1711611045756,-504.11156177,0.00054246,120]
[320838266,1711611045765,-519.49288858,0.00054246,120]
[320838267,1711611045773,-500.0,0.00054246,120]
[320838268,1711611045783,-500.0,0.00054246,120]
[320838269,1711611045949,-309.92483877,0.00054246,120]
[320838270,1711611045959,-510.91088835,0.00054246,120]
[320838271,1711611045968,-500.0,0.00054246,120]
[320838272,1711611045978,-500.0,0.00054246,120]
[320838273,1711611045989,-500.0,0.00054246,120]
[320838274,1711611045998,-512.85333831,0.00054246,120]
[320838275,1711611046008,-500.0,0.00054246,120]
[320838276,1711611046018,-500.0,0.00054246,120]
[320838277,1711611046029,-500.0,0.00054246,120]
[320838278,1711611046040,-500.0,0.00054246,120]
[320838279,1711611046049,-6079.56869362,0.00054246,2]
[320838280,1711611046068,-743.84880794,0.00054246,2]
[320838281,1711611046088,-3176.58249844,0.00054246,2]
[320838282,1711611046097,-232.398633,0.00054246,120]
[320838283,1711611046106,-500.0,0.00054246,120]
[320838284,1711611046116,-505.98674447,0.00054246,120]
[320838285,1711611046126,-500.0,0.00054246,120]
[320838286,1711611046136,-400.93645805,0.00054246,120]
[320838287,1711611046146,-513.23291292,0.00054246,120]
[320838288,1711611046155,-500.0,0.00054246,120]
[320838289,1711611046166,-500.0,0.00054246,120]
[320838290,1711611046177,-500.0,0.00054246,120]
[320838291,1711611046187,-500.0,0.00054246,120]
[320838292,1711611046198,-500.0,0.00054246,120]
[320838293,1711611046209,-500.0,0.00054246,120]
[320838294,1711611046220,-484.84522373,0.00054246,120]
[320838295,1711611046234,-15.15477627,0.00054246,120]
[320838296,1711611046243,-500.0,0.00054246,120]
[320838297,1711611046253,-500.0,0.00054246,120]
[320838298,1711611046262,-500.0,0.00054246,120]
[320838299,1711611046271,-500.0,0.00054246,120]
[320838300,1711611046281,-500.0,0.00054246,120]
[320838301,1711611046291,-500.0,0.00054246,120]
[320838302,1711611046300,-500.0,0.00054246,120]
[320838303,1711611046309,-500.0,0.00054246,2]
[320838304,1711611046318,-500.0,0.00054246,120]
[320838305,1711611046328,-500.0,0.00054246,120]
[320838306,1711611046337,-503.55493452,0.00054246,2]
[320838307,1711611046346,-500.0,0.00054246,120]
[320838308,1711611046357,-500.0,0.00054246,120]
[320838309,1711611046366,-500.0,0.00054246,120]
[320838311,1711611046376,-500.0,0.00054246,120]
[320838314,1711611046386,-500.0,0.00054246,120]
[320838315,1711611046395,-505.16437877,0.00054246,120]
[320838316,1711611046404,-500.0,0.00054246,120]
[320838317,1711611046413,-500.0,0.00054246,120]
[320838318,1711611046422,-500.0,0.00054246,120]
[320838319,1711611046431,-500.0,0.00054246,120]
[320838320,1711611046440,-500.0,0.00054246,120]
[320838321,1711611046452,-532.23,0.00054246,120]
[320838322,1711611046461,-488.83031712,0.00054246,120]
[320838323,1711611046642,-11.16968288,0.00054246,120]
[320838324,1711611046651,-510.81611501,0.00054246,120]
[320838325,1711611046660,-500.0,0.00054246,120]
[320838326,1711611046670,-500.0,0.00054246,120]
[320838327,1711611046679,-158.685116,0.00054246,120]
[320838328,1711611046688,-512.23521379,0.00054246,120]
[320838329,1711611046698,-506.79452788,0.00054246,120]
[320838330,1711611046707,-500.0,0.00054246,120]
[320838331,1711611046716,-500.0,0.00054246,120]
[320838332,1711611046725,-500.0,0.00054246,120]
[320838333,1711611046734,-501.06093018,0.00054246,120]
[320838334,1711611046743,-500.0,0.00054246,120]
[320838335,1711611046752,-500.0,0.00054246,120]
[320838336,1711611046761,-500.0,0.00054246,120]
[320838337,1711611046770,-500.0,0.00054246,120]
[320838338,1711611046780,-500.0,0.00054246,120]
[320838339,1711611046789,-500.0,0.00054246,120]
[320838340,1711611046798,-505.01704567,0.00054246,120]
[320838341,1711611046806,-500.0,0.00054246,120]
[320838342,1711611046816,-506.89136857,0.00054246,120]
[320838343,1711611046825,-509.30960134,0.00054246,120]
[320838344,1711611046834,-500.0,0.00054246,120]
[320838345,1711611046844,-500.0,0.00054246,120]
[320838346,1711611046854,-500.0,0.00054246,120]
[320838347,1711611046863,-500.0,0.00054246,120]
[320838348,1711611046872,-508.891406,0.00054246,120]
[320838349,1711611046881,-500.0,0.00054246,120]
[320838350,1711611046892,-500.0,0.00054246,120]
[320838351,1711611046901,-500.0,0.00054246,120]
[320838352,1711611046911,-500.0,0.00054246,120]
[320838353,1711611046921,-500.0,0.00054246,120]
[320838354,1711611046932,-500.0,0.00054246,120]
[320838355,1711611046943,-500.0,0.00054246,120]
[320838356,1711611046956,-500.0,0.00054246,120]
[320838357,1711611046966,-500.0,0.00054246,120]
[320838358,1711611046976,-500.0,0.00054246,120]
[320838359,1711611046986,-500.0,0.00054246,120]
[320838360,1711611046997,-249.0,0.00054246,120]
[320838361,1711611047009,-500.0,0.00054246,120]
[320838362,1711611047018,-502.49171985,0.00054246,120]
[320838363,1711611047028,-503.45668472,0.00054246,120]
[320838364,1711611047038,-500.0,0.00054246,120]
[320838365,1711611047047,-500.0,0.00054246,120]
[320838366,1711611047058,-500.0,0.00054246,120]
[320838367,1711611047068,-500.0,0.00054246,120]
[320838368,1711611047077,-500.0,0.00054246,120]
[320838369,1711611047086,-500.0,0.00054246,120]
[320838370,1711611047095,-505.29710464,0.00054246,120]
[320838371,1711611047105,-500.0,0.00054246,120]
[320838372,1711611047115,-500.0,0.00054246,120]
[320838373,1711611047125,-500.0,0.00054246,120]
[320838374,1711611047134,-500.0,0.00054246,120]
[320838375,1711611047143,-500.0,0.00054246,120]
[320838376,1711611047152,-500.0,0.00054246,120]
[320838377,1711611047162,-500.0,0.00054246,120]
[320838378,1711611047171,-358.14896578,0.00054246,120]
[320838379,1711611047181,-500.0,0.00054246,120]
[320838380,1711611047190,-500.0,0.00054246,120]
[320838381,1711611047201,-502.31725274,0.00054246,120]
[320838382,1711611047210,-509.88860834,0.00054246,120]
[320838383,1711611047219,-500.0,0.00054246,120]
[320838384,1711611047228,-500.0,0.00054246,120]
[320838385,1711611047237,-500.0,0.00054246,120]
[320838386,1711611047246,-500.0,0.00054246,120]
[320838387,1711611047257,-506.75905558,0.00054246,120]
[320838388,1711611047267,-500.0,0.00054246,120]
[320838389,1711611047278,-502.70810384,0.00054246,120]
[320838390,1711611047287,-713.55,0.00054246,120]
[320838391,1711611047296,-507.64380031,0.00054246,120]
[320838392,1711611047305,-500.0,0.00054246,120]
[320838393,1711611047315,-500.0,0.00054246,120]
[320838394,1711611047324,-500.0,0.00054246,120]
[320838395,1711611047332,-500.0,0.00054246,120]
[320838396,1711611047341,-500.0,0.00054246,120]
[320838397,1711611047352,-506.27439143,0.00054246,120]
[320838398,1711611047360,-500.0,0.00054246,120]
[320838399,1711611047369,-505.91275724,0.00054246,120]
[320838400,1711611047378,-500.0,0.00054246,120]
[320838401,1711611047387,-500.0,0.00054246,120]
[320838402,1711611047396,-500.0,0.00054246,120]
[320838403,1711611047405,-500.0,0.00054246,120]
[320838404,1711611047414,-500.0,0.00054246,120]
[320838405,1711611047423,-500.0,0.00054246,120]
[320838406,1711611047432,-500.0,0.00054246,120]
[320838407,1711611047441,-500.0,0.00054246,120]
[320838408,1711611047452,-510.48878091,0.00054246,120]
[320838409,1711611047461,-500.0,0.00054246,120]
[320838410,1711611047470,-500.0,0.00054246,120]
[320838411,1711611047479,-503.65020386,0.00054246,120]
[320838412,1711611047488,-507.26,0.00054246,120]
[320838413,1711611047498,-504.27320606,0.00054246,120]
[320838414,1711611047507,-500.0,0.00054246,120]
[320838415,1711611047516,-504.24734217,0.00054246,120]
[320838416,1711611047525,-500.0,0.00054246,120]
[320838417,1711611047535,-500.0,0.00054246,120]
[320838418,1711611047545,-500.0,0.00054246,120]
[320838419,1711611047554,-508.1572433,0.00054246,120]
[320838420,1711611047563,-500.0,0.00054246,120]
[320838421,1711611047572,-500.0,0.00054246,120]
[320838422,1711611047581,-500.0,0.00054246,120]
[320838423,1711611047590,-500.0,0.00054246,120]
[320838424,1711611047599,-500.0,0.00054246,120]
[320838425,1711611047608,-500.0,0.00054246,120]
[320838426,1711611047618,-500.0,0.00054246,120]
[320838427,1711611047627,-504.95921141,0.00054246,120]
[320838428,1711611047636,-500.0,0.00054246,120]
[320838429,1711611047645,-500.0,0.00054246,120]
[320838430,1711611047655,-500.0,0.00054246,120]
[320838431,1711611047664,-500.0,0.00054246,120]
[320838432,1711611047673,-500.0,0.00054246,120]
[320838433,1711611047682,-500.0,0.00054246,120]
[320838434,1711611047693,-500.0,0.00054246,120]
[320838435,1711611047705,-500.0,0.00054246,120]
[320838436,1711611047714,-500.0,0.00054246,120]
[320838437,1711611047723,-500.0,0.00054246,120]
[320838438,1711611047733,-500.0,0.00054246,120]
[320838439,1711611047742,-500.0,0.00054246,120]
[320838440,1711611047751,-500.0,0.00054246,120]
[320838441,1711611047760,-500.0,0.00054246,120]
[320838442,1711611047771,-500.0,0.00054246,120]
[320838443,1711611047780,-500.0,0.00054246,120]
[320838444,1711611047789,-500.0,0.00054246,120]
[320838445,1711611047798,-500.0,0.00054246,120]
[320838446,1711611047807,-431.27249113,0.00054246,120]
[320838447,1711611047816,-500.0,0.00054246,120]
[320838448,1711611047826,-506.821027,0.00054246,120]
[320838449,1711611047835,-500.0,0.00054246,120]
[320838450,1711611047844,-500.0,0.00054246,120]
[320838451,1711611047853,-511.82895192,0.00054246,120]
[320838452,1711611047863,-500.0,0.00054246,120]
[320838453,1711611047872,-500.0,0.00054246,120]
[320838454,1711611047882,-500.0,0.00054246,120]
[320838455,1711611047891,-500.0,0.00054246,120]
[320838456,1711611047901,-500.0,0.00054246,120]
[320838457,1711611047910,-500.0,0.00054246,120]
[320838458,1711611047919,-507.79896244,0.00054246,120]
[320838459,1711611047928,-500.0,0.00054246,120]
[320838460,1711611047938,-500.0,0.00054246,120]
[320838461,1711611047948,-500.0,0.00054246,120]
[320838462,1711611047957,-500.0,0.00054246,120]
[320838463,1711611047967,-500.0,0.00054246,120]
[320838464,1711611047976,-500.0,0.00054246,120]
[320838465,1711611047987,-500.0,0.00054246,120]
[320838466,1711611047996,-500.0,0.00054246,120]
[320838467,1711611048007,-409.6396587,0.00054246,120]
[320838468,1711611048017,-500.0,0.00054246,120]
[320838469,1711611048027,-500.0,0.00054246,120]
[320838470,1711611048036,-500.0,0.00054246,120]
[320838471,1711611048046,-500.0,0.00054246,120]
[320838472,1711611048056,-500.0,0.00054246,120]
[320838473,1711611048066,-500.0,0.00054246,120]
[320838474,1711611048075,-505.462729,0.00054246,120]
[320838475,1711611048083,-500.0,0.00054246,120]
[320838476,1711611048092,-500.0,0.00054246,120]
[320838477,1711611048102,-500.0,0.00054246,120]
[320838478,1711611048111,-503.19521837,0.00054246,120]
[320838479,1711611048120,-500.0,0.00054246,120]
[320838480,1711611048129,-500.0,0.00054246,120]
[320838481,1711611048138,-500.0,0.00054246,120]
[320838482,1711611048147,-500.0,0.00054246,120]
[320838483,1711611048157,-500.0,0.00054246,120]
[320838484,1711611048167,-506.13926029,0.00054246,120]
[320838485,1711611048176,-500.73544044,0.00054246,120]
[320838486,1711611048186,-500.0,0.00054246,120]
[320838487,1711611048195,-500.0,0.00054246,120]
[320838488,1711611048205,-500.0,0.00054246,120]
[320838489,1711611048214,-500.0,0.00054246,120]
[320838490,1711611048223,-505.50343717,0.00054246,120]
[320838491,1711611048232,-505.36787391,0.00054246,120]
[320838492,1711611048241,-500.0,0.00054246,120]
[320838493,1711611048250,-500.0,0.00054246,120]
[320838494,1711611048260,-500.0,0.00054246,120]
[320838495,1711611048269,-500.0,0.00054246,120]
[320838496,1711611048278,-500.0,0.00054246,120]
[320838497,1711611048290,-500.0,0.00054246,120]
[320838498,1711611048299,-507.84262356,0.00054246,120]
[320838499,1711611048308,-500.0,0.00054246,120]
[320838500,1711611048317,-500.0,0.00054246,120]
[320838501,1711611048326,-500.0,0.00054246,120]
[320838502,1711611048335,-504.97758995,0.00054246,120]
[320838503,1711611048345,-500.0,0.00054246,120]
[320838504,1711611048354,-500.0,0.00054246,120]
[320838505,1711611048363,-513.9994343,0.00054246,120]
[320838506,1711611048372,-500.0,0.00054246,120]
[320838507,1711611048382,-401.51806677,0.00054246,120]
[320838508,1711611048391,-247.0461702,0.00054246,120]
[320838509,1711611048402,-500.0,0.00054246,120]
[320838510,1711611048410,-500.0,0.00054246,120]
[320838511,1711611048419,-500.0,0.00054246,120]
[320838512,1711611048428,-503.71509284,0.00054246,120]
[320838513,1711611048437,-500.0,0.00054246,120]
[320838514,1711611048447,-500.0,0.00054246,120]
[320838515,1711611048456,-500.0,0.00054246,120]
[320838516,1711611048464,-500.0,0.00054246,120]
[320838517,1711611048474,-500.0,0.00054246,120]
[320838518,1711611048483,-150.0,0.00054246,120]
[320838519,1711611048492,-500.0,0.00054246,120]
[320838520,1711611048501,-503.68566829,0.00054246,120]
[320838521,1711611048510,-500.0,0.00054246,120]
[320838522,1711611048519,-500.0,0.00054246,120]
[320838523,1711611048528,-500.0,0.00054246,120]
[320838524,1711611048537,-500.0,0.00054246,120]
[320838525,1711611048546,-500.0,0.00054246,120]
[320838526,1711611048556,-500.0,0.00054246,120]
[320838527,1711611048719,-500.0,0.00054246,120]
[320838528,1711611048729,-500.0,0.00054246,120]
[320838529,1711611048738,-500.0,0.00054246,120]
[320838530,1711611048747,-500.0,0.00054246,120]
[320838531,1711611048756,-511.91848543,0.00054246,120]
[320838532,1711611048765,-500.0,0.00054246,120]
[320838533,1711611048774,-500.0,0.00054246,120]
[320838534,1711611048783,-809.36,0.00054246,120]
[320838535,1711611048792,-809.36,0.00054246,120]
[320838536,1711611048801,-500.0,0.00054246,120]
[320838537,1711611048810,-809.36,0.00054246,120]
[320838538,1711611048819,-152.893636,0.00054246,120]
[320838539,1711611048828,-809.36,0.00054246,120]
[320838540,1711611048837,-809.36,0.00054246,120]
[320838541,1711611048846,-503.45809778,0.00054246,120]
[320838542,1711611048855,-809.36,0.00054246,120]
[320838543,1711611048865,-809.36,0.00054246,120]
[320838544,1711611048873,-1003.25174921,0.00054246,2]
[320838545,1711611048882,-500.0,0.00054246,120]
[320838546,1711611048891,-809.36,0.00054246,120]
[320838547,1711611048900,-500.0,0.00054246,120]
[320838548,1711611048909,-500.0,0.00054246,120]
[320838549,1711611048918,-500.0,0.00054246,120]
[320838550,1711611048927,-498.44389385,0.00054246,120]
[320838551,1711611048936,-500.0,0.00054246,120]
[320838552,1711611048945,-500.0,0.00054246,120]
[320838553,1711611048955,-500.0,0.00054246,120]
[320838554,1711611048964,-477.3451109,0.00054246,120]
[320838555,1711611048973,-151.0,0.00054246,120]
[320838556,1711611048982,-500.0,0.00054246,120]
[320838557,1711611048991,-500.0,0.00054246,120]
[320838558,1711611049001,-500.0,0.00054246,120]
[320838559,1711611049010,-500.0,0.00054246,120]
[320838560,1711611049019,-500.0,0.00054246,120]
[320838561,1711611049028,-500.0,0.00054246,120]
[320838562,1711611049037,-500.0,0.00054246,120]
[320838563,1711611049046,-500.0,0.00054246,120]
[320838564,1711611049055,-502.96332047,0.00054246,120]
[320838565,1711611049064,-500.0,0.00054246,120]
[320838566,1711611049074,-500.0,0.00054246,120]
[320838567,1711611049083,-500.0,0.00054246,120]
[320838568,1711611049093,-500.0,0.00054246,120]
[320838569,1711611049102,-500.0,0.00054246,120]
[320838570,1711611049111,-500.0,0.00054246,120]
[320838571,1711611049120,-500.0,0.00054246,120]
[320838572,1711611049129,-500.0,0.00054246,120]
[320838573,1711611049138,-500.0,0.00054246,120]
[320838574,1711611049147,-500.0,0.00054246,120]
[320838575,1711611049156,-500.0,0.00054246,120]
[320838576,1711611049165,-503.1145276,0.00054246,120]
[320838577,1711611049174,-500.0,0.00054246,120]
[320838578,1711611049184,-500.0,0.00054246,120]
[320838579,1711611049192,-500.0,0.00054246,120]
[320838580,1711611049204,-502.52335002,0.00054246,120]
[320838581,1711611049213,-500.0,0.00054246,120]
[320838582,1711611049223,-500.0,0.00054246,120]
[320838583,1711611049232,-500.0,0.00054246,120]
[320838584,1711611049241,-500.0,0.00054246,120]
[320838585,1711611049250,-500.0,0.00054246,120]
[320838586,1711611049259,-500.0,0.00054246,120]
[320838587,1711611049269,-500.0,0.00054246,120]
[320838588,1711611049278,-500.0,0.00054246,120]
[320838589,1711611049290,-500.0,0.00054246,120]
[320838590,1711611049299,-501.90449573,0.00054246,120]
[320838591,1711611049307,-500.0,0.00054246,120]
[320838592,1711611049317,-500.0,0.00054246,120]
[320838593,1711611049326,-500.0,0.00054246,120]
[320838594,1711611049335,-500.0,0.00054246,120]
[320838595,1711611049345,-500.0,0.00054246,120]
[320838596,1711611049354,-500.0,0.00054246,120]
[320838597,1711611049364,-500.0,0.00054246,120]
[320838598,1711611049374,-500.0,0.00054246,120]
[320838599,1711611049383,-500.0,0.00054246,120]
[320838600,1711611049392,-500.0,0.00054246,120]
[320838601,1711611049402,-500.0,0.00054246,120]
[320838602,1711611049411,-500.0,0.00054246,120]
[320838603,1711611049420,-500.0,0.00054246,120]
[320838604,1711611049429,-500.0,0.00054246,120]
[320838605,1711611049439,-152.540532,0.00054246,120]
[320838606,1711611049450,-500.0,0.00054246,120]
[320838607,1711611049460,-500.0,0.00054246,120]
[320838608,1711611049470,-500.0,0.00054246,120]
[320838609,1711611049479,-500.0,0.00054246,120]
[320838610,1711611049488,-500.0,0.00054246,120]
[320838611,1711611049497,-500.0,0.00054246,120]
[320838612,1711611049506,-500.0,0.00054246,120]
[320838613,1711611049515,-500.0,0.00054246,120]
[320838614,1711611049524,-500.0,0.00054246,120]
[320838615,1711611049533,-500.0,0.00054246,120]
[320838616,1711611049542,-500.0,0.00054246,120]
[320838617,1711611049551,-500.0,0.00054246,120]
[320838618,1711611049560,-500.0,0.00054246,120]